{"text_format":"1","workbook":"xlsx","n_sheets":2,"sheets":["SHEET2","SHEET1"],"not_rendered":{"charts":0,"images":0,"macros":1,"external_links":1,"defined_names":25,"comments":1,"pivot_tables":0},"unopened":[],"bounds":{"document_bytes":16777216,"sheet_cells":100000,"rows_first":2000,"rows_last":500,"rows_between":2000,"halvings":0,"cell_chars":16384,"cell_head_chars":4096},"cells_cut":0,"cells_raw":0,"read":"whole","date_system":"1900"}

{"sheet":"SHEET2","index":0,"n_rows":25,"n_cols":8,"rows_kept":25,"cut":false,"hidden":false,"merged":[[0,0,0,11]]}
["ASE  SERVICING SCHEDULE  "]
["SERIAL NO","LOCATION","DESCRIPTION","TRADE","SERVICE EVERY ","ANNUAL","WEEKS","6M"]
["1AS","STOR1","FAN","MECH",null,null,{"$f":"IFERROR(INDEX(SHEET1!F:F,MATCH($A3,SHEET1!A:A,0)),\"\")","v":"WEEK 1"}]
["2BB","STOR1","FAN","MECH",null,null,{"$f":"IFERROR(INDEX(SHEET1!F:F,MATCH($A4,SHEET1!A:A,0)),\"\")","v":"WEEK 2"}]
["1JK","STOR2","FAN","MECH",null,null,{"$f":"IFERROR(INDEX(SHEET1!F:F,MATCH($A5,SHEET1!A:A,0)),\"\")","v":"WEEK 3"}]
["2LKJ","STOR1","FAN","MECH",null,null,{"$f":"IFERROR(INDEX(SHEET1!F:F,MATCH($A6,SHEET1!A:A,0)),\"\")","v":"WEEK 1"}]
["34KG","STOR3","FAN","MECH",null,null,{"$f":"IFERROR(INDEX(SHEET1!F:F,MATCH($A7,SHEET1!A:A,0)),\"\")","v":"WEEK 2"}]
["9GJ","STOR1","FAN","MECH",null,null,{"$f":"IFERROR(INDEX(SHEET1!F:F,MATCH($A8,SHEET1!A:A,0)),\"\")","v":"WEEK 3"}]
["48G","STOR3","FAN","MECH",null,null,{"$f":"IFERROR(INDEX(SHEET1!F:F,MATCH($A9,SHEET1!A:A,0)),\"\")","v":"WEEK 1"}]
["DK4","STOR1","FAN","MECH",null,null,{"$f":"IFERROR(INDEX(SHEET1!F:F,MATCH($A10,SHEET1!A:A,0)),\"\")","v":"WEEK 2"}]
["JG9","STOR2","FAN","MECH",null,null,{"$f":"IFERROR(INDEX(SHEET1!F:F,MATCH($A11,SHEET1!A:A,0)),\"\")","v":"WEEK 3"}]
["KJS","STOR3","FAN","MECH",null,null,{"$f":"IFERROR(INDEX(SHEET1!F:F,MATCH($A12,SHEET1!A:A,0)),\"\")","v":""}]
["SRE","STOR1","FAN","MECH",null,null,{"$f":"IFERROR(INDEX(SHEET1!F:F,MATCH($A13,SHEET1!A:A,0)),\"\")","v":""}]
["TAS","STOR3","FAN","MECH",null,null,{"$f":"IFERROR(INDEX(SHEET1!F:F,MATCH($A14,SHEET1!A:A,0)),\"\")","v":""}]
["WEQFR","STOR1","FAN","MECH",null,null,{"$f":"IFERROR(INDEX(SHEET1!F:F,MATCH($A15,SHEET1!A:A,0)),\"\")","v":""}]
["FAS","STOR2","FAN","MECH",null,null,{"$f":"IFERROR(INDEX(SHEET1!F:F,MATCH($A16,SHEET1!A:A,0)),\"\")","v":""}]
["QWD","STOR3","FAN","MECH",null,null,{"$f":"IFERROR(INDEX(SHEET1!F:F,MATCH($A17,SHEET1!A:A,0)),\"\")","v":""}]
["DAW","STOR1","FAN","MECH",null,null,{"$f":"IFERROR(INDEX(SHEET1!F:F,MATCH($A18,SHEET1!A:A,0)),\"\")","v":""}]
["FFG","STOR3","FAN","MECH",null,null,{"$f":"IFERROR(INDEX(SHEET1!F:F,MATCH($A19,SHEET1!A:A,0)),\"\")","v":""}]
["F9K","STOR1","FAN","MECH",null,null,{"$f":"IFERROR(INDEX(SHEET1!F:F,MATCH($A20,SHEET1!A:A,0)),\"\")","v":"WEEK 1"}]
["LK9","STOR2","FAN","MECH",null,null,{"$f":"IFERROR(INDEX(SHEET1!F:F,MATCH($A21,SHEET1!A:A,0)),\"\")","v":"WEEK 2"}]
["JK3","STOR1","FAN","MECH/ELEC",null,null,{"$f":"IFERROR(INDEX(SHEET1!F:F,MATCH($A22,SHEET1!A:A,0)),\"\")","v":"WEEK 3"}]
["9IF","STOR3","FAN","MECH",null,null,{"$f":"IFERROR(INDEX(SHEET1!F:F,MATCH($A23,SHEET1!A:A,0)),\"\")","v":"WEEK 1"}]
["ERI","STOR2","FAN","MECH",null,null,{"$f":"IFERROR(INDEX(SHEET1!F:F,MATCH($A24,SHEET1!A:A,0)),\"\")","v":"WEEK 2"}]
["38FR","STOR1","FAN","MECH",null,null,{"$f":"IFERROR(INDEX(SHEET1!F:F,MATCH($A25,SHEET1!A:A,0)),\"\")","v":"WEEK 3"}]

{"sheet":"SHEET1","index":1,"n_rows":17,"n_cols":12,"rows_kept":17,"cut":false,"hidden":false,"merged":[[0,0,0,8]]}
["ASE  SERVICING  SCHEDULE  JAN "]
["SERIAL NO","DESCRIPTION","LOCATION","TRADE","SERVICE TYPE","DATE","DONE BY","1013 ACTION","COMMENTS"]
["1AS","FAN","STOR1","MECH"," ANNUAL","WEEK 1"]
["2BB","FAN","STOR1","MECH"," 3MONTHLY","WEEK 2"]
["1JK","FAN","STOR2","MECH"," 6MONTHLY","WEEK 3"]
["2LKJ","FAN","STOR1","MECH"," 6MONTHLY","WEEK 1",null,null,null,null,null,""]
["34KG","FAN","STOR3","MECH"," ANNUAL","WEEK 2"]
["9GJ","FAN","STOR1","MECH"," 3MONTHLY","WEEK 3"]
["48G","FAN","STOR1","MECH"," 3MONTHLY","WEEK 1",null,null,null,null,null,""]
["DK4","FAN","STOR1","MECH"," 3MONTHLY","WEEK 2"]
["JG9","FAN","STOR2","MECH"," 3MONTHLY","WEEK 3"]
["F9K","FAN","STOR2","MECH"," 3MONTHLY","WEEK 1"]
["LK9","FAN","STOR1","MECH"," 3MONTHLY","WEEK 2"]
["JK3","FAN","STOR1","MECH/ELEC"," ANNUAL","WEEK 3"]
["9IF","FAN","STOR3","MECH"," ANNUAL","WEEK 1"]
["ERI","FAN","STOR2","MECH"," ANNUAL","WEEK 2"]
["38FR","FAN","STOR1","MECH"," ANNUAL","WEEK 3"]